bitfinex/quotes_ETHUSD_20241119
["timestamp","ask_amount","ask_price","bid_price","bid_amount"]
[1732049435504,3.22802,3097.9,3096.6,1.0151]
[1732049435804,3.22802,3097.9,3096.2,1.94781]
[1732049435805,3.22802,3097.9,3096.5,0.9769]
[1732049435995,3.22802,3097.9,3097.2,1.93722]
[1732049436194,3.22809,3097.8,3097.0,1.93734]
[1732049436493,0.7438,3098.3,3096.5,0.9769]
[1732049436494,0.01,3098.2,3096.5,0.9769]
[1732049436691,3.2285,3097.5,3096.7,1.93752]
[1732049436995,3.22822,3097.7,3096.5,0.9769]
[1732049437319,6.22809,3097.8,3097.1,1.93725]
[1732049437519,3.0,3097.8,3097.3,1.93716]
[1732049437687,3.0,3098.0,3097.3,1.93716]
[1732049437887,0.55,3097.9,3097.3,1.93716]
[1732049438102,3.77799,3097.9,3097.3,1.88716]
[1732049438421,0.7438,3098.3,3097.3,7.74]
[1732049438422,3.22778,3098.1,3097.3,7.74]
[1732049438781,3.22796,3098.0,3097.3,7.74]
[1732049438985,3.22796,3098.0,3097.3,9.67717]
[1732049439183,3.22824,3097.7,3097.3,7.74]
[1732049439490,3.22818,3097.8,3097.3,7.74]
[1732049439678,3.22806,3097.9,3097.3,7.74]
[1732049439876,3.22806,3097.9,3097.3,9.67716]
[1732049440875,3.22783,3098.1,3097.3,9.67716]
[1732049441078,0.55,3098.0,3097.3,7.74]
[1732049441296,3.22851,3097.4,3097.3,7.74]
[1732049441605,6.77851,3097.4,3097.3,7.74]
[1732049444393,3.0,3097.7,3097.3,7.74]
[1732049444625,3.0,3097.5,3097.3,7.74]
[1732049444855,0.55,3097.6,3097.3,7.74]
[1732049444997,3.0,3097.6,3097.3,7.74]
[1732049445192,3.7782,3097.7,3097.3,7.74]
[1732049446002,0.55,3097.7,3097.3,7.74]
[1732049446206,0.55,3097.6,3097.3,7.74]
[1732049446406,3.22842,3097.5,3097.3,7.74]
[1732049446674,6.77832,3097.6,3097.3,7.74]
[1732049447121,3.55,3097.6,3097.3,7.74]
[1732049447476,0.55,3097.7,3097.4,1.9371]
[1732049447606,0.55,3097.9,3097.4,3.87415]
[1732049447808,0.55,3097.9,3097.4,1.93705]
[1732049448220,3.22759,3098.3,3097.6,1.93692]
[1732049448506,3.2274,3098.5,3097.7,1.93689]
[1732049448737,3.22758,3098.3,3097.7,1.93689]
[1732049449163,3.2274,3098.5,3097.9,2.95265]
[1732049449369,3.0,3098.4,3098.0,1.93672]
[1732049449536,3.0,3098.6,3098.1,1.93666]
[1732049450126,3.22697,3098.9,3098.3,1.93653]
[1732049450426,3.22697,3098.9,3098.3,1.9365]
[1732049450631,3.97368,3099.1,3098.5,1.93638]
[1732049450964,0.31480786,3099.2,3097.7,7.74]
[1732049450965,3.2267,3099.2,3098.6,2.95225]
[1732049451345,3.22646,3099.4,3098.6,2.9522]
[1732049451557,0.7469,3099.5,3098.9,1.93615]
[1732049451956,3.97329,3099.5,3098.9,1.93615]
[1732049452154,3.22622,3099.6,3099.0,1.9361]
[1732049452513,0.7469,3099.9,3099.1,1.936]
[1732049452656,3.22589,3100.0,3099.4,1.93585]
[1732049453028,3.54064481,3100.2,3099.4,1.9358]
[1732049453253,3.226,3099.9,3099.3,1.93589]
[1732049453576,3.22683,3099.1,3098.6,1.021]
[1732049453866,3.22622,3099.6,3098.6,1.021]
[1732049454037,3.22639,3099.5,3098.8,1.93621]
[1732049454238,3.22615,3099.7,3099.0,1.9361]
[1732049454460,6.22622,3099.6,3099.0,1.9361]
[1732049454827,3.0,3099.4,3098.8,1.93623]
[1732049455027,6.77639,3099.5,3098.8,1.93618]
[1732049455229,3.0,3099.1,3098.6,1.021]
[1732049455486,3.22727,3098.6,3098.2,1.0403]
[1732049455825,3.0,3098.7,3098.2,1.0403]
[1732049456176,0.7469,3099.3,3098.2,1.0403]
[1732049456177,3.2275,3098.4,3098.2,1.0403]
[1732049456392,3.0,3098.5,3098.2,1.0403]
[1732049456890,3.22739,3098.5,3098.2,1.0403]
[1732049457451,3.0,3098.4,3098.2,1.0403]
[1732049457677,3.2277,3098.2,3098.0,7.74]
[1732049457856,3.22778,3098.1,3098.0,7.74]
[1732049458170,6.22778,3098.1,3098.0,7.74]
[1732049458370,6.77778,3098.1,3098.0,7.74]
[1732049462368,3.22765,3098.3,3098.0,7.74]
[1732049462750,3.22705,3098.8,3098.0,7.74]
[1732049462973,3.2275,3098.4,3098.0,7.74]
[1732049463191,3.22767,3098.3,3098.0,7.74]
[1732049463393,3.22778,3098.1,3098.0,7.74]
[1732049463695,6.22778,3098.1,3098.0,7.74]
[1732049464051,6.77778,3098.1,3098.0,7.74]
[1732049464952,3.0,3098.1,3098.0,7.74]
[1732049465156,6.22778,3098.1,3098.0,7.74]
[1732049465793,6.77778,3098.1,3098.0,7.74]
[1732049466000,7.52468,3098.1,3098.0,7.74]
[1732049467387,6.77778,3098.1,3098.0,7.74]
[1732049468588,6.77778,3098.1,3098.0,7.60117518]
[1732049468903,3.0,3098.1,3098.0,7.46117518]
[1732049469067,6.22778,3098.1,3098.0,7.46117518]
[1732049469394,6.77778,3098.1,3098.0,7.46117518]
[1732049470292,3.0,3098.1,3098.0,7.46117518]
[1732049470491,3.22711,3098.8,3098.3,1.0087]
[1732049470697,0.31551268,3098.9,3098.3,2.9452]
[1732049470856,0.31551268,3098.9,3098.4,1.93642]
[1732049471054,3.22695,3098.9,3098.4,1.91927197]
[1732049471257,3.22695,3098.9,3098.3,2.94524]
[1732049471458,3.22712,3098.8,3098.3,2.94524]
[1732049471687,3.22695,3098.9,3098.3,2.94524]
[1732049471996,3.22747,3098.4,3098.3,1.0087]
[1732049472203,3.22761,3098.3,3098.0,8.54207518]
[1732049472423,3.22778,3098.1,3098.0,7.46117518]
[1732049472707,6.22778,3098.1,3098.0,7.46117518]
[1732049473357,6.77778,3098.1,3098.0,7.46117518]
[1732049475381,0.7469,3098.6,3098.0,7.46117518]
[1732049475382,3.0,3098.3,3098.0,7.46117518]
[1732049475696,6.22778,3098.1,3098.0,7.46117518]
[1732049476496,3.0,3098.2,3098.0,8.51227518]
[1732049476802,0.55,3098.1,3098.0,8.51227518]
[1732049478108,3.22707,3098.8,3098.1,1.0132]
[1732049478270,4.64232047,3099.6,3098.2,1.93655]
[1732049478271,3.22657,3099.3,3098.2,1.93655]
[1732049478612,0.8356,3099.5,3098.2,1.93655]
[1732049478613,3.22664,3099.2,3098.2,1.0631]
[1732049478807,3.22664,3099.2,3098.6,1.0631]
[1732049479014,3.22645,3099.4,3098.6,2.99942]
[1732049479166,1.15137616,3099.8,3098.9,1.93612]
[1732049479475,3.22601,3099.8,3099.3,1.0704]
[1732049479673,3.22624,3099.6,3099.3,1.0704]
[1732049480036,4.37701616,3100.2,3099.5,1.93574]
[1732049480037,4.37703616,3100.2,3099.5,1.93574]
[1732049480169,3.22551,3100.3,3099.7,1.93567]
[1732049480364,3.22551,3100.3,3099.6,1.93572]
[1732049480572,3.2256,3100.2,3099.4,1.9358]
[1732049480798,3.22551,3100.3,3099.4,1.9358]
[1732049480799,3.22549,3100.3,3099.6,1.9357]
[1732049480995,3.22549,3100.3,3099.4,1.93582]
[1732049480996,3.22562,3100.2,3099.5,1.93575]
[1732049481520,3.22562,3100.2,3099.6,1.93573]
[1732049481817,3.22544,3100.4,3099.3,1.0704]
[1732049481818,3.22609,3099.8,3099.3,1.0704]
[1732049481985,0.8456,3100.6,3099.3,1.0704]
[1732049481986,3.0,3099.9,3099.3,1.0704]
[1732049482163,3.0,3099.7,3099.3,3.00627]
[1732049482367,0.55,3099.7,3099.3,1.0704]
[1732049482599,6.22614,3099.7,3099.3,1.0704]
[1732049482802,3.22649,3099.4,3098.9,1.0713]
[1732049483017,0.8356,3099.2,3098.2,8.53247518]
[1732049483215,3.0,3098.7,3098.2,8.53247518]
[1732049483454,0.55,3098.6,3098.2,10.46903518]
[1732049483755,0.55,3098.6,3098.5,1.93642]
[1732049483968,3.0,3098.9,3098.8,1.93623]
[1732049484114,3.22601,3099.8,3099.1,1.93603]
[1732049484115,3.0,3099.7,3099.1,1.93603]
[1732049484318,0.55,3099.5,3099.2,1.93596]
[1732049484828,0.55,3099.5,3099.0,1.93608]
[1732049485032,0.55,3099.6,3099.2,1.93597]
[1732049485260,3.77612,3099.7,3099.0,1.93605]
[1732049485427,3.22645,3099.4,3098.9,1.0713]
[1732049485631,0.55,3099.7,3098.4,1.0783]
[1732049485632,3.22684,3099.0,3098.4,1.0783]
[1732049485817,0.55,3099.3,3098.7,1.93625]
[1732049486312,3.55,3099.4,3098.9,1.93613]
[1732049486514,3.55,3099.4,3098.7,1.93625]
[1732049486831,3.55,3099.4,3098.5,3.01469]
[1732049486832,0.55,3099.2,3098.5,1.0783]
[1732049487031,3.22599,3099.9,3099.4,1.0783]
[1732049487210,3.22582,3100.0,3099.4,3.01414]
[1732049487415,3.22578,3100.1,3099.4,3.01414]
[1732049487632,0.8356,3100.3,3099.4,1.0783]
[1732049487826,0.8356,3100.3,3099.4,3.01415]
[1732049487827,3.22598,3099.9,3099.4,3.01415]
[1732049488072,3.22593,3099.9,3099.4,1.0783]
[1732049488363,3.22603,3099.8,3099.4,1.0783]
[1732049488516,6.22586,3100.0,3099.4,1.0783]
[1732049488720,3.22594,3099.9,3099.4,1.0783]
[1732049489418,3.22631,3099.6,3099.4,1.0783]
[1732049489620,3.22659,3099.3,3098.7,1.0674]
[1732049490266,0.55,3099.0,3098.7,1.0674]
[1732049490477,3.22703,3098.9,3098.7,1.0674]
[1732049490767,0.55,3098.8,3098.7,1.0674]
[1732049491064,3.22627,3099.6,3098.7,1.0674]
[1732049491065,3.22632,3099.6,3098.7,3.00369]
[1732049491243,0.55,3099.3,3098.7,3.00369]
[1732049491455,0.55,3099.3,3098.7,1.0674]
[1732049491615,0.55,3099.1,3098.7,1.0674]
[1732049492216,0.55,3099.3,3098.8,1.93622]
[1732049492412,3.77654,3099.3,3098.7,3.00369]
[1732049492655,0.55,3099.3,3098.7,1.0674]
[1732049492970,0.55,3099.3,3098.3,1.0946]
[1732049492971,0.55,3098.9,3098.3,1.0946]
[1732049493122,3.22757,3098.3,3098.2,7.46117518]
[1732049494053,0.55,3098.3,3098.2,7.46117518]
[1732049494380,0.55,3098.3,3098.2,9.39777518]
[1732049494966,0.55,3098.3,3098.2,7.46117518]
[1732049495120,0.55,3098.4,3098.2,7.46117518]
[1732049495318,0.55,3098.6,3098.2,7.46117518]
[1732049495557,0.55,3098.4,3098.2,7.46117518]
[1732049496534,3.77754,3098.4,3098.2,7.46117518]
[1732049496927,0.55,3098.4,3098.2,7.46117518]
[1732049497270,3.22757,3098.3,3098.2,7.46117518]
[1732049497440,0.55,3098.3,3098.2,7.46117518]
[1732049498487,3.77757,3098.3,3098.2,7.46117518]
[1732049500245,0.55,3098.3,3098.2,7.46117518]
[1732049500538,3.22729,3098.6,3098.2,7.46117518]
[1732049500941,3.0,3098.7,3098.2,9.39776518]
[1732049501190,6.22721,3098.7,3098.2,9.39776518]
[1732049501326,3.0,3098.7,3098.2,9.39773518]
[1732049501524,3.22685,3099.0,3098.5,1.9364]
[1732049501724,4.37780583,3099.6,3098.3,1.1004]
[1732049501725,4.06191,3099.6,3098.4,3.87296]
[1732049501955,3.22631,3099.6,3099.0,1.1004]
[1732049502231,3.22633,3099.5,3099.0,1.1004]
[1732049502656,3.22606,3099.8,3099.0,1.1004]
[1732049502865,3.22606,3099.8,3099.1,1.936]
[1732049503074,0.55,3099.5,3099.0,1.1004]
[1732049503442,3.55,3099.5,3099.0,1.1004]
[1732049503631,3.22644,3099.4,3099.0,1.1004]
[1732049503830,0.55,3099.3,3099.0,1.1004]
[1732049504045,3.22711,3098.8,3098.3,1.0411]
[1732049504254,3.22683,3099.1,3098.4,1.93648]
[1732049504450,0.55,3099.0,3098.5,1.93637]
[1732049505154,3.22711,3098.8,3098.3,1.0411]
[1732049505469,3.22743,3098.5,3098.3,1.0411]
[1732049505981,3.22757,3098.3,3098.2,7.46117518]
[1732049506478,3.77757,3098.3,3098.2,7.46117518]
[1732049507037,3.55,3098.3,3098.2,7.46117518]
[1732049507385,3.55,3098.6,3098.2,7.46117518]
[1732049507826,0.55,3098.6,3098.5,1.93642]
[1732049508032,3.2267,3099.2,3098.5,1.93636]
[1732049508330,6.45324,3099.3,3098.5,1.93636]
[1732049508644,0.8362,3099.5,3098.2,8.5946227]
[1732049508645,3.22637,3099.5,3098.8,1.93623]
[1732049508881,3.22637,3099.5,3099.0,1.0795]
[1732049509406,3.0,3099.4,3099.0,1.0795]
[1732049509754,3.0,3099.2,3098.2,8.5946227]
[1732049509992,3.22674,3099.1,3098.5,1.9364]
[1732049510288,3.22675,3099.1,3098.5,1.93641]
[1732049510773,3.0,3099.2,3098.6,1.93634]
[1732049511182,0.55,3099.1,3098.7,1.93625]
[1732049511353,0.55,3099.1,3098.6,1.93634]
[1732049511875,3.55,3099.2,3098.6,1.9363]
[1732049512084,6.77667,3099.2,3098.6,1.9363]
[1732049512636,0.55,3099.0,3098.4,1.93644]
[1732049512793,3.22722,3098.7,3098.3,1.1028]
[1732049513107,3.22722,3098.7,3098.2,7.46117518]
[1732049513108,3.22744,3098.5,3098.2,7.46117518]
[1732049513394,0.55,3098.3,3098.2,7.46117518]
[1732049513563,3.22686,3099.0,3098.2,9.39777518]
[1732049513761,3.77706,3098.8,3098.2,7.46117518]
[1732049513976,0.55,3098.6,3098.2,9.39774518]
[1732049514186,3.22757,3098.3,3098.2,7.46117518]
[1732049514703,6.77757,3098.3,3098.2,7.46117518]
[1732049515307,7.07371669,3098.3,3098.2,7.46117518]
[1732049515592,10.66871266,3098.3,3098.2,7.46117518]
[1732049516539,7.08371669,3098.3,3098.2,7.46117518]
[1732049516673,8.30492191,3098.3,3098.2,7.46117518]
[1732049517085,8.62086088,3098.3,3098.2,7.46117518]
[1732049517326,7.91991669,3098.3,3098.2,7.46117518]
[1732049517825,8.30492191,3098.3,3098.2,7.46117518]
[1732049519020,7.91991669,3098.3,3098.2,7.46117518]
[1732049519785,7.9195697,3098.3,3098.2,7.46117518]
[1732049520613,7.9195697,3098.3,3098.2,1.00581518]
[1732049520828,8.23508938,3098.3,3098.2,5.18e-06]
[1732049521017,8.22508938,3098.3,3098.2,5.18e-06]
[1732049521313,7.9095697,3098.3,3098.2,5.18e-06]
[1732049521673,7.9095697,3098.3,3098.2,0.14000518]
[1732049522310,7.3595697,3098.3,3098.2,0.14000518]
[1732049523622,11.5077421,3098.3,3098.2,0.14000518]
[1732049523791,11.5077421,3098.3,3096.6,1.93757]
[1732049523792,3.22893,3097.0,3096.6,1.0558]
[1732049524124,10.6715421,3098.3,3096.6,1.0558]
[1732049524125,3.0,3096.7,3096.6,1.0558]
[1732049524305,3.22966,3096.3,3095.9,1.0606]
[1732049524677,3.22976,3096.2,3095.9,1.0606]
[1732049525026,3.77976,3096.2,3095.9,1.0606]
[1732049525874,0.55,3096.2,3095.9,1.0606]
[1732049526180,3.55,3096.5,3095.9,1.0606]
[1732049526396,3.55,3096.5,3096.0,1.93796]
[1732049526619,3.77976,3096.2,3095.9,1.0606]
[1732049526895,6.77976,3096.2,3095.2,1.0438]
[1732049527826,6.77976,3096.2,3095.2,2.98224]
[1732049528223,6.77976,3096.2,3095.2,1.0438]
[1732049528771,7.07392842,3096.2,3095.2,1.0438]
[1732049529417,7.07392842,3096.2,3094.9,1.0438]
[1732049529919,7.08392842,3096.2,3096.1,1.8e-06]
[1732049530254,7.92012842,3096.2,3096.1,1.8e-06]
[1732049531128,7.91012842,3096.2,3096.1,1.8e-06]
[1732049531471,7.61596,3096.2,3096.1,1.8e-06]
[1732049531656,3.22976,3096.2,3096.1,1.8e-06]
[1732049531829,3.22964,3096.4,3096.1,1.8e-06]
[1732049532028,3.22957,3096.4,3096.1,1.8e-06]
[1732049532253,3.22968,3096.3,3096.1,1.8e-06]
[1732049532977,1.14674814,3097.0,3096.1,1.8e-06]
[1732049533145,3.22965,3096.4,3096.1,1.8e-06]
[1732049533533,6.22976,3096.2,3096.1,1.8e-06]
[1732049533855,3.0,3096.3,3096.1,1.8e-06]
[1732049534063,3.0,3096.7,3096.1,1.8e-06]
[1732049534273,3.0,3096.7,3096.2,1.93785]
[1732049534570,3.0,3096.7,3096.1,1.8e-06]
[1732049534729,3.0,3096.5,3096.1,1.8e-06]
[1732049535376,3.0,3096.9,3096.3,1.0896]
[1732049535586,0.31294814,3097.0,3096.9,1.0896]
[1732049535788,3.54187814,3097.0,3096.9,1.0896]
[1732049535988,3.22932,3096.7,3096.3,1.0896]
[1732049536187,3.22903,3096.9,3096.3,1.0896]
[1732049536188,3.22908,3096.9,3096.3,1.0896]
[1732049536546,3.54195814,3097.0,3096.3,1.0896]
[1732049536891,0.31294814,3097.0,3096.6,1.9376]
[1732049537041,7.6615591,3097.8,3096.7,1.93749]
[1732049537042,3.22834,3097.6,3096.7,1.93749]
[1732049537243,3.22814,3097.8,3097.1,1.93729]
[1732049537503,3.22802,3097.9,3097.4,1.0278]
[1732049538793,3.2282,3097.7,3097.4,1.0278]
[1732049539028,3.77838,3097.6,3096.9,1.93738]
[1732049539212,3.22882,3097.1,3096.1,1.8e-06]
[1732049539354,3.22841,3097.5,3096.6,1.0658]
[1732049539355,1.3838,3097.4,3096.6,1.0658]
[1732049539555,3.22923,3096.8,3096.6,1.0658]
[1732049539808,0.8338,3097.4,3096.3,1.93779]
[1732049539809,0.55,3096.9,3096.3,1.93779]
[1732049540067,3.0,3096.8,3096.2,2.94321]
[1732049540300,0.55,3096.7,3096.4,1.93771]
[1732049540488,0.55,3096.7,3096.6,3.0317]
[1732049540654,3.0,3097.5,3096.8,1.93743]
[1732049540870,3.0,3097.3,3096.8,1.93743]
[1732049541198,6.22849,3097.5,3096.8,1.93742]
[1732049541513,6.22849,3097.5,3096.6,1.0941]
[1732049541657,6.22849,3097.5,3096.8,1.93744]
[1732049541658,3.0,3097.5,3096.8,1.93744]
[1732049541965,3.0,3097.3,3096.8,1.93744]
[1732049542165,0.55,3097.2,3096.8,1.93744]
[1732049542399,0.55,3097.2,3096.6,4.96922]
[1732049542704,0.55,3097.2,3096.7,1.9375]
[1732049542885,0.55,3097.2,3096.8,1.93747]
[1732049543087,0.55,3097.2,3096.9,1.93741]
[1732049543254,0.55,3097.2,3096.7,1.93749]
[1732049543455,0.55,3097.2,3096.8,1.93747]
[1732049544402,0.55,3097.4,3097.2,1.071]
[1732049544574,0.55,3097.6,3097.2,1.071]
[1732049545579,3.77831,3097.6,3097.2,1.071]
[1732049546493,3.0,3097.5,3097.2,1.071]
[1732049546703,0.55,3097.4,3097.2,1.071]
[1732049546913,0.55,3097.6,3097.2,1.071]
[1732049547135,3.22861,3097.3,3095.9,0.01]
[1732049547416,3.22861,3097.3,3095.4,1.93831]
[1732049547417,3.22927,3096.7,3096.5,1.0008]
[1732049547618,3.0,3096.5,3096.1,1.0417018]
[1732049547800,0.55,3096.6,3096.1,2.9795818]
[1732049548195,0.55,3096.4,3096.2,1.93782]
[1732049548379,0.55,3096.4,3096.3,1.93779]
[1732049548579,0.55,3096.6,3096.5,3.04547]
[1732049549038,3.22838,3097.6,3097.0,3.04495]
[1732049549321,3.22852,3097.4,3097.0,1.1076]
[1732049550336,0.8338,3098.0,3097.0,3.0449]
[1732049550584,0.8338,3098.0,3097.2,1.93719]
[1732049550585,3.22811,3097.8,3097.2,1.93719]
[1732049550885,3.0,3097.7,3097.2,1.93719]
[1732049551290,3.0,3097.5,3097.0,4.98222]
[1732049551498,3.0,3097.5,3097.1,1.93729]
[1732049551683,0.55,3097.4,3097.2,1.93723]
[1732049551884,0.55,3097.6,3097.2,1.93723]
[1732049552517,0.55,3097.6,3097.2,3.87446]
[1732049552781,0.55,3097.6,3097.3,1.93715]
[1732049553231,0.55,3097.8,3097.4,1.088]
[1732049553389,6.22801,3097.9,3097.4,1.088]
[1732049553724,3.59795899,3097.8,3096.8,1.088]
[1732049553896,3.22873,3097.2,3096.8,1.088]
[1732049554222,3.0,3097.5,3096.9,1.93738]
[1732049554428,6.22841,3097.5,3096.9,1.93737]
[1732049554627,0.55,3097.4,3096.9,1.93737]
[1732049554803,3.22868,3097.3,3096.8,1.088]
[1732049554983,3.22903,3096.9,3096.8,1.088]
[1732049555182,3.22903,3096.9,3096.3,1.0383]
[1732049555420,3.22903,3096.9,3096.1,1.8e-06]
[1732049555421,3.22976,3096.2,3096.1,1.8e-06]
[1732049555630,6.22976,3096.2,3096.1,1.8e-06]
[1732049555792,6.77976,3096.2,3096.1,1.8e-06]
[1732049557871,3.55,3096.2,3096.1,1.8e-06]
[1732049557979,0.55,3096.2,3096.1,1.8e-06]
[1732049558185,6.77976,3096.2,3096.1,1.8e-06]
[1732049558388,11.21151899,3096.2,3096.1,1.8e-06]
[1732049558627,11.50672384,3096.2,3096.1,1.8e-06]
[1732049559642,7.90876485,3096.2,3096.1,1.8e-06]
[1732049560493,7.07496485,3096.2,3096.1,1.8e-06]
[1732049560938,0.55,3096.2,3096.1,1.8e-06]
[1732049561143,6.22967,3096.3,3096.1,1.8e-06]
[1732049562203,0.55,3096.2,3096.1,1.8e-06]
[1732049562802,0.55,3096.3,3096.1,1.8e-06]
[1732049563137,0.55,3096.5,3096.2,1.93782]
[1732049563337,0.55,3096.5,3096.1,1.8e-06]
[1732049563338,3.0,3096.5,3096.1,1.8e-06]
[1732049563842,6.22945,3096.5,3096.1,1.8e-06]
[1732049564222,3.22976,3096.2,3096.1,1.8e-06]
[1732049564539,7.07522827,3096.2,3096.1,1.8e-06]
[1732049565307,0.84546827,3096.2,3096.1,1.8e-06]
[1732049565518,3.55,3096.3,3096.1,1.8e-06]
[1732049565903,6.77967,3096.3,3096.1,1.8e-06]
[1732049566419,6.77976,3096.2,3096.1,1.8e-06]
[1732049566811,3.22941,3096.6,3096.1,1.8e-06]
[1732049566812,3.22941,3096.6,3096.2,1.0599]
[1732049567036,0.55,3096.5,3096.2,1.0599]
[1732049567362,3.22957,3096.4,3096.2,1.0599]
[1732049567642,3.22957,3096.4,3096.1,1.8e-06]
[1732049567643,3.22976,3096.2,3096.1,1.8e-06]
[1732049567852,4.07512951,3096.2,3096.1,1.8e-06]
[1732049568018,7.07512951,3096.2,3096.1,1.8e-06]
[1732049568632,7.99262951,3096.2,3096.1,1.8e-06]
[1732049569560,0.55,3094.6,3094.5,0.00808081]
[1732049569717,6.78143,3094.6,3094.5,0.00808081]
[1732049570463,7.68893,3094.6,3094.5,0.00808081]
[1732049571260,8.14143522,3094.6,3094.5,0.00808081]
[1732049571629,8.14143522,3094.6,3094.5,8.1e-07]
[1732049571630,8.44587264,3094.6,3094.5,8.1e-07]
[1732049571832,3.0,3093.6,3093.0,2.0802532]
[1732049572022,6.23254,3093.6,3093.0,0.6561416]
[1732049572220,3.0,3093.4,3093.0,0.6561416]
[1732049572562,0.55,3093.6,3093.0,0.1404032]
[1732049572563,3.0,3093.6,3093.0,0.1404032]
[1732049572921,6.23248,3093.6,3093.0,0.1404032]
[1732049573119,3.0,3093.6,3093.0,0.1404032]
[1732049573653,3.23259,3093.5,3093.0,0.1404032]
[1732049573849,6.23258,3093.6,3093.0,0.1404032]
[1732049574063,0.55,3093.5,3093.0,0.4611536]
[1732049574360,3.78258,3093.5,3093.0,0.4611536]
[1732049574569,3.78258,3093.5,3093.0,0.1404032]
[1732049574570,0.55,3093.5,3093.0,0.1404032]
[1732049574774,0.55,3093.4,3093.0,0.1404032]
[1732049574921,3.2319,3094.2,3093.4,1.93957]
[1732049575126,3.23181,3094.3,3093.7,1.1087]
[1732049575354,3.2319,3094.2,3093.7,1.607464]
[1732049575661,3.23172,3094.4,3093.7,3.04812]
[1732049576027,3.23177,3094.3,3093.7,3.04812]
[1732049576226,3.0,3094.4,3093.7,3.04808]
[1732049576446,6.23171,3094.4,3093.8,1.93931]
[1732049576665,3.0,3094.1,3093.7,1.607464]
[1732049576862,3.0,3094.4,3093.7,1.1087]
[1732049577190,3.23159,3094.5,3093.7,1.1087]
[1732049577191,3.23159,3094.5,3093.8,1.9393]
[1732049577347,3.23182,3094.3,3093.7,1.1087]
[1732049577909,0.55,3094.2,3093.7,1.1087]
[1732049578181,0.55,3094.4,3093.7,1.607462]
[1732049578499,0.55,3094.6,3094.1,1.93912]
[1732049578779,3.78123,3094.8,3094.2,1.93907]
[1732049578987,3.78123,3094.8,3094.3,1.93904]
[1732049579164,3.78123,3094.8,3094.2,1.93907]
[1732049579485,0.55,3094.7,3094.2,1.93904]
[1732049579774,6.23135,3094.7,3094.3,1.0382]
[1732049580343,3.23143,3094.6,3094.3,1.0382]
[1732049580563,6.23136,3094.7,3094.3,1.0382]
[1732049580781,3.23191,3094.2,3093.9,1.0382]
[1732049580984,3.23191,3094.2,3093.0,2.0902332]
[1732049580985,3.23256,3093.6,3093.2,1.0382]
[1732049581264,0.55,3093.7,3093.6,1.93946]
[1732049581464,3.0,3094.3,3093.7,1.9394]
[1732049581683,0.55,3094.2,3093.8,2.97756]
[1732049581885,0.55,3094.5,3093.9,1.93929]
[1732049582103,3.55,3094.5,3093.8,3.469262]
[1732049582369,3.55,3094.5,3093.8,1.529902]
[1732049582676,3.78176,3094.3,3093.8,1.529902]
[1732049583263,3.23212,3094.0,3093.8,1.0382]
[1732049583486,0.55,3093.9,3093.3,1.94966]
[1732049583703,0.55,3093.9,3093.5,1.93952]
[1732049583863,3.78199,3094.1,3093.4,0.194966]
[1732049584080,4.18229522,3094.1,3093.5,1.93954]
[1732049584317,0.55,3093.9,3093.5,1.93954]
[1732049584621,0.44097189,3093.8,3093.1,1.0382]
[1732049584901,0.55,3093.6,3093.1,1.0382]
[1732049585265,0.55,3093.4,3093.1,1.0382]
[1732049585463,0.55,3093.6,3093.1,1.0382]
[1732049585807,0.55,3093.6,3093.1,2.97795]
[1732049586020,0.55,3093.7,3093.3,1.93966]
[1732049586308,0.55,3093.7,3093.1,3.2905934]
[1732049586309,0.55,3093.7,3093.1,3.2906134]
[1732049586489,3.23271,3093.4,3093.1,1.0382]
[1732049586692,3.23271,3093.4,3093.0,0.1404032]
[1732049586693,1.33943022,3093.4,3093.0,0.1404032]
[1732049586864,6.783,3093.1,3093.0,0.1404032]
[1732049587068,7.19278522,3093.1,3093.0,0.1404032]
[1732049587310,8.10028522,3093.1,3093.0,0.1404032]
[1732049587812,8.10028522,3093.1,3091.2,0.01808081]
[1732049587813,3.23428,3091.9,3091.2,0.00808081]
[1732049588048,0.55,3091.8,3091.4,1.94082]
[1732049588201,0.44883522,3092.3,3091.2,0.20299989]
[1732049588550,0.55,3091.8,3091.3,1.94088]
[1732049588840,0.55,3091.8,3091.5,1.9408]
[1732049589043,0.55,3091.9,3091.3,1.94088]
[1732049589198,0.44883522,3091.9,3091.2,0.00808081]
[1732049589401,0.44883522,3091.9,3091.2,1.94901081]
[1732049589402,0.99883522,3091.8,3091.2,1.94901081]
[1732049589744,0.99883522,3091.8,3091.2,0.00808081]
[1732049589954,0.99883522,3091.8,3091.3,1.94089]
[1732049590247,0.55,3091.8,3091.3,1.94089]
[1732049590542,3.23416,3092.0,3091.3,1.94089]
[1732049590697,0.55,3091.9,3091.4,1.1165]
[1732049590903,3.78425,3091.9,3091.4,1.1165]
[1732049591098,0.55,3092.0,3091.4,1.1165]
[1732049591334,0.93818355,3092.0,3091.4,3.05735]
[1732049591643,0.55,3091.8,3091.4,1.1165]
[1732049591863,3.23449,3091.7,3091.4,1.1165]
[1732049592162,0.55,3091.6,3091.2,1.94905081]
[1732049592472,0.38818355,3091.6,3091.2,1.94905081]
[1732049592770,3.78426,3091.9,3091.2,2.45117889]
[1732049593070,3.23437,3091.8,3091.2,2.45117889]
[1732049593236,3.78426,3091.9,3091.2,1.94905081]
[1732049593433,0.55,3091.7,3091.2,0.00808081]
[1732049593639,3.78426,3091.9,3091.2,0.00808081]
[1732049593839,0.55,3091.7,3091.2,0.00808081]